{"text_format":"1","workbook":"xlsx","n_sheets":7,"sheets":["Hinweise","Humusbilanz Gesamtbetrieb","Humusbilanz Fruchtfolge","organische Materialien","zehrer","mehrer","Liste"],"not_rendered":{"charts":1,"images":10,"macros":1,"external_links":0,"defined_names":25,"comments":2,"pivot_tables":0},"unopened":[],"bounds":{"document_bytes":16777216,"sheet_cells":100000,"rows_first":2000,"rows_last":500,"rows_between":2000,"halvings":0,"cell_chars":16384,"cell_head_chars":4096},"cells_cut":0,"cells_raw":0,"read":"whole","date_system":"1900"}

{"sheet":"Hinweise","index":0,"n_rows":52,"n_cols":3,"rows_kept":52,"cut":false,"hidden":false,"merged":[[0,1,1,2],[25,1,27,2],[7,1,7,2],[8,1,8,2],[9,1,9,2],[10,1,10,2],[11,1,11,2],[12,1,12,2]]}
[null,"Erläuterungen zur Humusbilanz"]
[]
[null,null,"Alle grünen Zellen können ausgefüllt werden. Wird die Zelle ausgewählt, erscheint rechts ein kleiner, nach unten gerichteter Pfeil, mit dem man aus einer Liste die entsprechende Fruchtart und Wirtschaftsdünger auswählen kann."]
[null,null,"Graue Zellen sind Eingabefelder."]
[null,null,"Weiße Felder enthalten Berechnungsformeln und dürfen nicht ausgefüllt werden."]
[null,null,"Gelbe Felder weisen die Ergebnisse der Humusbilanz aus."]
[]
[null,"Humusäquivalente:\nIst eine dimensionslose Einheit. Dies soll verdeutlichen, dass die Kennwerte dazu dienen sollen, die optimale Versorgung mit organischer Substanz zu bemessen. Nicht aber dazu geeignet sind, die Veränderung der Bodenhumusvorräte zu errechnen."]
[null,"Bilanzierung:\nBei der Humusbilanzierung handelt es sich um ein rein rechnerisches Bilanzierungsverfahren. Die Parameter für die hier vorgestellte Bilanzierungsmethode basieren im Wesentlichen auf langjährigen Versuchsergebnissen. Eine Humusbilanzierung dient der Beurteilung des Humushaushaltes ackerbaulich genutzter Böden. Durch den Humussaldo wird eine quantitative Abschätzung der Humusreproduktion in Abhängigkeit von der jeweiligen Bodenbewirtschaftung ermöglicht. Daraus lässt sich ableiten, inwieweit Änderungen in der Bewirtschaftung notwendig sind, um eine standortangepasste Humusversorgung der Böden zu erhalten. Aus Menge und Qualität der zugeführten Ernterückstände sowie der organischen Dünger lässt sich deren unterschiedliche Fähigkeit zur Humusreproduktion ermitteln. Aus der Differenz der Humusersatzleistung durch organische Dünger in Form von Ernterückständen, Stallmist, Gülle oder Kompost etc. und dem anbauspezifischen Humusreproduktionsbedarf der Fruchtfolge, ergibt sich so der Humussaldo. Dabei wird zwischen humusmehrenden und humuszehrenden Kulturen unterschieden. Aus der Differenz der Humusersatzleistung durch organische Dünger in Form von Ernterückständen, Stallmist, Gülle oder Kompost etc. und dem anbauspezifischen Humusreproduktionsbedarf der Fruchtfolge, ergibt sich so der Humussaldo. Dabei wird zwischen humusmehrenden und humuszehrenden Kulturen unterschieden. Humusmehrende Kulturen wie Ackergras, Klee oder Luzerne leisten einen erheblichen Beitrag zur Humusversorgung.\n\n"]
[]
[]
[]
[]
[null,"Getreide, Raps",-400]
[null,"Silomais, Gemüse",-800]
[null,"Kartoffeln",-1000]
[null,"Zuckerrüben",-1300]
[]
[null,"Winterzwischenfrüchte",140]
[null,"Körnerleguminosen",160]
[null,"Untersaaten",250]
[null,"Ackergras, Leguminosen-Gras-Gemenge",600]
[]
[]
[]
[null,"Richtwerte für fruchtartspezifischen Humusreproduktionsbedarf bzw. Humusreproduktionsleistung in Humusäquivalenten je ha Ackerfläche und Jahr (mittlere VDLUFA Werte)"]
[]
[]
[]
[]
[]
[]
[]
[]
[]
[]
[]
[]
[]
[]
[]
[]
[]
[]
[]
[]
[]
[]
[]
[]
[null,null,"weitere Informationen erhalten Sie unter:"]
[null,null,"https://www.vdlufa.de/download/Humus/Standpunkt_Humusbilanzierung.pdf"]

{"sheet":"Humusbilanz Gesamtbetrieb","index":1,"n_rows":78,"n_cols":21,"rows_kept":78,"cut":false,"hidden":false,"merged":[[77,2,77,9],[49,14,49,15],[49,12,50,12],[49,11,50,11],[6,5,7,5],[6,6,7,6],[6,7,6,8],[46,11,48,15],[33,1,34,1],[33,2,34,2],[33,3,34,4],[6,1,7,1],[6,2,7,2],[6,3,7,3],[6,4,7,4],[36,3,36,4],[37,3,37,4],[38,3,38,4],[39,3,39,4],[40,3,40,4],[49,1,50,1],[49,2,50,4],[49,6,50,6],[61,7,61,8],[60,7,60,8],[51,2,51,4],[52,2,52,4],[53,2,53,4],[54,2,54,4],[55,2,55,4],[56,2,56,4],[58,7,58,8],[59,7,59,8],[58,2,58,4],[59,2,59,4],[56,7,56,8],[76,3,76,9],[65,3,65,6],[1,5,1,6],[33,7,33,8],[66,3,66,6],[67,3,67,6],[68,3,68,6],[69,3,69,6],[71,2,71,9],[73,6,73,8],[60,2,60,4],[49,5,50,5],[57,7,57,8],[57,2,57,4],[54,7,54,8],[55,7,55,8],[1,2,1,3],[1,7,1,8],[3,3,3,5],[4,3,4,5],[75,3,75,9],[52,7,52,8],[53,7,53,8],[49,7,50,8],[51,7,51,8],[41,3,41,4],[42,3,42,4],[43,3,43,4],[44,3,44,4],[33,6,34,6],[33,5,34,5],[35,3,35,4]]}
[]
[null,null,"Betrachtungseinheit",null,"Gesamtbetrieb","Bewirtschaftung",null,"ökologisch"]
[null,null,null,null,null,null,null,"obligatorische Eingabe"]
[null,null,"Name:"]
[null,null,"Wohnort"]
[]
[null,"Nr.","Schlagname oder\n Bewirt-\nschaftungs-\neinheit","Kategorie","Humuszehrende Kultur","Hektar   ","Kultur-\nzustand\nBoden","Humuszehrend"]
[null,null,null,null,null,null,null,"(Häq) \nha","(Häq) Gesamt-\nfläche *a"]
[null,1,null,null,null,null,null,{"$f":"IF(G9=\"\",\"\",IF(G9=\"erhalten\",VLOOKUP(E9,Kulturen,12,0),IF(G9=\"fördern\",VLOOKUP(E9,Kulturen,13,0),IF(G9=\"stark fördern\",VLOOKUP(E9,Kulturen,14,0),\"\"))))","v":""},{"$f":"IF(G9=\"\",\"\",F9*H9)","v":""}]
[null,2,null,null,null,null,null,"",{"$f":"IF(G10=\"\",\"\",F10*H10)","v":""}]
[null,3,null,null,null,null,null,"",""]
[null,4,null,null,null,null,null,"",""]
[null,5,null,null,null,null,null,"",""]
[null,6,null,null,null,null,null,"",""]
[null,7,null,null,null,null,null,"",""]
[null,8,null,null,null,null,null,"",""]
[null,9,null,null,null,null,null,"",""]
[null,10,null,null,null,null,null,"",""]
[null,11,null,null,null,null,null,"",""]
[null,12,null,null,null,null,null,"",""]
[null,13,null,null,null,null,null,"",""]
[null,14,null,null,null,null,null,"",""]
[null,15,null,null,null,null,null,"",""]
[null,16,null,null,null,null,null,"",""]
[null,17,null,null,null,null,null,"",""]
[null,18,null,null,null,null,null,"",""]
[null,19,null,null,null,null,null,"",""]
[null,20,null,null,null,null,null,"",""]
[null,null,null,null,null,{"$f":"SUM(F9:F28)","v":0},null,null,{"$f":"SUM(I9:I28)","v":0}]
[]
[]
[]
[]
[null,"Nr.","Schlagname oder\n Bewirt-\nschaftungs-\neinheit","Humusmehrende Kultur",null,"Hektar   ","Ertrags-\nniveau","Humusmehrend"]
[null,null,null,null,null,null,null,"Häq (FM) \npro ha","(Häq) Gesamt-\nfläche a"]
[null,1,null,null,null,null,null,{"$f":"IF(D36=\"\",\"\",IF(G36=\"niedrig\",VLOOKUP(D36,Humusmehrer,16,0),IF(G36=\"hoch\",VLOOKUP(D36,Humusmehrer,17,0),\"\")))","v":""},{"$f":"IF(G36=\"\",\"\",F36*H36)","v":""},null,null,null,null,null,null,null,null,null,null,{"$f":"IF(D36=\"\",\"\",VLOOKUP(D36,Humusmehrer,18,0))","v":""},{"$f":"IF(D36=\"\",\"\",IF(T36=\"Zwischenfrucht\",F36-F36,F36))","v":""}]
[null,2,null,null,null,null,null,"",{"$f":"IF(G37=\"\",\"\",F37*H37)","v":""},null,null,null,null,null,null,null,null,null,null,"",""]
[null,3,null,null,null,null,null,"","",null,null,null,null,null,null,null,null,null,null,"",""]
[null,4,null,null,null,null,null,"","",null,null,null,null,null,null,null,null,null,null,"",""]
[null,5,null,null,null,null,null,"","",null,null,null,null,null,null,null,null,null,null,"",""]
[null,6,null,null,null,null,null,"","",null,null,null,null,null,null,null,null,null,null,"",""]
[null,7,null,null,null,null,null,"","",null,null,null,null,null,null,null,null,null,null,"",""]
[null,8,null,null,null,null,null,"","",null,null,null,null,null,null,null,null,null,null,"",""]
[null,9,null,null,null,null,null,"","",null,null,null,null,null,null,null,null,null,null,"",""]
[null,10,null,null,null,null,null,"","",null,null,null,null,null,null,null,null,null,null,"",""]
[null,null,null,null,null,null,null,null,{"$f":"SUM(I36:I45)","v":0},null,null,null,null,null,null,null,null,null,null,"Summe",{"$f":"SUM(U36:U45)","v":0}]
[null,null,null,null,"Summe Betriebsflächen",{"$f":"U47","v":0},null,null,null,null,null,"Hilfsrechern zum berechnen des Strohertrages, \nder ermittelt Wert muss in neben stehende Tabelle übertragen werden",null,null,null,null,null,null,null,"Gesamtfläche",{"$f":"F29+U46","v":0}]
[]
[]
[null,null,"Humusmehrende Organische Substanz",null,null,"Menge\nt","Häq (t FM)","Häq a",null,null,null,"Stroherträge","Hektar\nStrohbergung","Kornertrag","Ertrag Stroh t/Gesamtfl.",null,null,null,null,"Berechnung Strohertrag"]
[null,null,null,null,null,null,null,null,null,null,null,null,null,"dt/ha","konventionell","ökologisch",null,null,null,"Korn/Strohverh. Kon.","Korn/Strohverh. Öko."]
[null,1,null,null,null,null,{"$f":"IF(C52=\"\",\"\",VLOOKUP(C52,organische_Materialien,3,0))","v":""},{"$f":"IF(C52=\"\",\"\",F52*G52)","v":""},null,null,null,{"$f":"IF(C52=\"\",\"\",C52)","v":""},null,null,{"$f":"IF(N52=\"\",\"\",M52*(N52/10)*T52)","v":""},{"$f":"IF(N52=\"\",\"\",M52*(N52/10)*U52)","v":""},null,null,null,{"$f":"IF(C52=\"\",\"\",VLOOKUP(C52,organische_Materialien,5,0))","v":""},{"$f":"IF(C52=\"\",\"\",VLOOKUP(C52,organische_Materialien,6,0))","v":""}]
[null,2,null,null,null,null,"",{"$f":"IF(C53=\"\",\"\",F53*G53)","v":""},null,null,null,"",null,null,{"$f":"IF(N53=\"\",\"\",M53*(N53/10)*T53)","v":""},{"$f":"IF(N53=\"\",\"\",M53*(N53/10)*U53)","v":""},null,null,null,"",""]
[null,3,null,null,null,null,"","",null,null,null,"",null,null,"","",null,null,null,"",""]
[null,4,null,null,null,null,"","",null,null,null,"",null,null,"","",null,null,null,"",""]
[null,5,null,null,null,null,"","",null,null,null,"",null,null,"","",null,null,null,"",""]
[null,6,null,null,null,null,"","",null,null,null,"",null,null,"","",null,null,null,"",""]
[null,7,null,null,null,null,"","",null,null,null,"",null,null,"","",null,null,null,"",""]
[null,8,null,null,null,null,"","",null,null,null,"",null,null,"","",null,null,null,"",""]
[null,9,null,null,null,null,"","",null,null,null,"",null,null,"","",null,null,null,"",""]
[null,10,null,null,null,null,"","",null,null,null,"",null,null,"","",null,null,null,"",""]
[null,null,null,null,null,null,null,{"$f":"SUM(H52:I61)","v":0}]
[]
[]
[]
[null,null,null,"Bilanz",null,null,null,"Gesamtfläche","pro Hektar"]
[null,null,null,"Humuszehrende Früchte",null,null,null,{"$f":"I29","v":0},{"$f":"IF(H67=0,\"\",H67/$U$47)","v":""}]
[null,null,null,"Humusmehrende Früchte bzw. Erntereste",null,null,null,{"$f":"I46","v":0},{"$f":"IF(H68=0,\"\",H68/$U$47)","v":""}]
[null,null,null,"Humusmehrende org. Materialien",null,null,null,{"$f":"H62","v":0},""]
[null,null,null,"Summe der Kulturen bzw. Fruchtfolgen",null,null,null,{"$f":"SUM(H67:H69)","v":0},""]
[]
[null,null,"Humussaldo"]
[]
[null,null,"Betriebsform:",{"$f":"IF(H2=\"\",\"\",H2)","v":"ökologisch"},null,{"$f":"IF(I70=\"\",\"\",IF(D74=\"integriert\",IF(I70>=300,\"E\",IF(I70>101,\"D\",IF(I70>-75,\"C\",IF(I70>=-200,\"B\",\"A\")))),IF(I70>500,\"E\",IF(I70>=300,\"D\",IF(I70>=0,\"C\",IF(I70>=-200,\"B\",\"A\"))))))","v":""},{"$f":"IF(F74=\"\",\"\",IF(F74=\"A\",\"sehr niedrig\",IF(F74=\"B\",\"niedrig\",IF(F74=\"C\",\"mittel\",IF(F74=\"D\",\"hoch\",IF(F74=\"E\",\"sehr hoch\",0))))))","v":""}]
[]
[null,null,"Bewertung:",{"$f":"IF(D74=\"\",\"\",IF(F74=\"A\",\"ungünstige Beeinflussung von Bodenfunktion und Ertragsleistung\",IF(F74=\"B\",\"mittelfristig tolerierbar\",IF(F74=\"C\",\"Humusabbau wird durch die Humuszufuhr in der Fruchtfolge ausgegleichen\",IF(F74=\"D\",\"mittelfristig tolerierbar\",IF(F74=\"E\",\"Erhöhung der Mineralisationspotenzials des Bodens (Möglichkeiten erhöhter Verluste und verminderter Düngeeffizienz)\",0))))))","v":0}]
[null,null,"Empfehlung:",{"$f":"IF(D74=\"\",\"\",IF(F74=\"A\",\"Änderung der Fruchtartenwahl\",IF(F74=\"B\",\"ausgeglichene Bilanz anstreben\",IF(F74=\"C\",\"keine\",IF(F74=\"D\",\"ausgeglichene Bilanz anstreben\",IF(F74=\"E\",\"Auf Einhaltung des zulässigen N Überschusses achten)\",0))))))","v":0}]
[null,null,"Sollten Sie weitere Fragen zu den Ergebnissen und deren Interpretation haben, wenden Sie sich butte an die Berater des LLH!"]

{"sheet":"Humusbilanz Fruchtfolge","index":2,"n_rows":78,"n_cols":19,"rows_kept":78,"cut":false,"hidden":false,"merged":[[77,2,77,7],[6,6,6,7],[33,6,33,7],[44,10,46,13],[49,2,50,3],[33,2,34,4],[49,6,49,7],[49,12,49,13],[35,2,35,4],[36,2,36,4],[37,2,37,4],[38,2,38,4],[39,2,39,4],[40,2,40,4],[41,2,41,4],[42,2,42,4],[43,2,43,4],[75,3,75,7],[76,3,76,7],[51,2,51,3],[52,2,52,3],[53,2,53,3],[54,2,54,3],[55,2,55,3],[56,2,56,3],[57,2,57,3],[58,2,58,3],[59,2,59,3],[60,2,60,3],[66,2,66,5],[67,2,67,5],[68,2,68,5],[69,2,69,5],[44,2,44,4],[3,5,3,7],[1,6,1,7],[25,3,25,4],[26,3,26,4],[27,3,27,4],[6,3,7,4],[1,3,1,4],[20,3,20,4],[21,3,21,4],[22,3,22,4],[23,3,23,4],[24,3,24,4],[8,3,8,4],[9,3,9,4],[10,3,10,4],[73,5,73,7],[65,2,65,5],[49,4,50,4],[49,5,50,5],[49,1,50,1],[6,5,7,5],[33,1,34,1],[33,5,34,5],[16,3,16,4],[17,3,17,4],[6,1,7,1],[6,2,7,2],[28,4,28,5],[18,3,18,4],[19,3,19,4],[11,3,11,4],[12,3,12,4],[13,3,13,4],[14,3,14,4],[15,3,15,4]]}
[]
[null,"Betrachtungseinheit",null,"Fruchtfolge Schlag",null,"Bewirtschaftung"]
[null,null,null,null,null,null,"obligatorische Eingabe"]
[null,"Name:",null,null,"Schlagname:"]
[null,"Wohnort:",null,null,"Hektar:",2.5,"Humus %"]
[]
[null,"Nr.","Kategorie","Kultur",null,"Kultur-\nzustand\nBoden","Humuszehrend"]
[null,null,null,null,null,null,"(Häq) \nha *a","Häq\n(t FM) Gesamtfläche\nSchlag"]
[null,1,null,null,null,null,{"$f":"IF(F9=\"\",\"\",IF(F9=\"erhalten\",VLOOKUP(D9,Kulturen,12,0),IF(F9=\"fördern\",VLOOKUP(D9,Kulturen,13,0),IF(F9=\"stark fördern\",VLOOKUP(D9,Kulturen,14,0),\"\"))))","v":""},{"$f":"IF(D9=\"\",\"\",G9*$F$5)","v":""}]
[null,2,null,null,null,null,"",{"$f":"IF(D10=\"\",\"\",G10*$F$5)","v":""}]
[null,3,null,null,null,null,"",""]
[null,4,null,null,null,null,"",""]
[null,5,null,null,null,null,"",""]
[null,6,null,null,null,null,"",""]
[null,7,null,null,null,null,"",""]
[null,8,null,null,null,null,"",""]
[null,9,null,null,null,null,"",""]
[null,10,null,null,null,null,"",""]
[null,11,null,null,null,null,"",""]
[null,12,null,null,null,null,"",""]
[null,13,null,null,null,null,"",""]
[null,14,null,null,null,null,"",""]
[null,15,null,null,null,null,"",""]
[null,16,null,null,null,null,"",""]
[null,17,null,null,null,null,"",""]
[null,18,null,null,null,null,"",""]
[null,19,null,null,null,null,"",""]
[null,20,null,null,null,null,"",""]
[null,null,null,null,null,null,{"$f":"SUM(G9:G28)","v":0},{"$f":"SUM(H9:H28)","v":0}]
[]
[]
[]
[]
[null,"Nr.","Kultur",null,null,"Ertrags-\nniveau","Humusmehrend"]
[null,null,null,null,null,null,"Häq (t FM)\npro ha *a ","Häq (t FM) \nGesamtfläche (Schlag) *a"]
[null,1,null,null,null,null,{"$f":"IF(F36=\"niedrig\",VLOOKUP(C36,Humusmehrer,16,0),IF(F36=\"hoch\",VLOOKUP(C36,Humusmehrer,17,0),\"\"))","v":""},{"$f":"IF(C36=\"\",\"\",G36*$F$5)","v":""}]
[null,2,null,null,null,null,"",{"$f":"IF(C37=\"\",\"\",G37*$F$5)","v":""}]
[null,3,null,null,null,null,"",""]
[null,4,null,null,null,null,"",""]
[null,5,null,null,null,null,"",""]
[null,6,null,null,null,null,"",""]
[null,7,null,null,null,null,"",""]
[null,8,null,null,null,null,"",""]
[null,9,null,null,null,null,"",""]
[null,10,null,null,null,null,"","",null,null,"Hilfsrechern zum berechnen des Strohertrages, \nder ermittelt Wert muss in neben stehende Tabelle übertragen werden"]
[null,null,null,null,null,{"$f":"SUM(E36:E45)","v":0},{"$f":"SUM(G36:G45)","v":0},{"$f":"SUM(H36:H45)","v":0}]
[]
[]
[]
[null,null,"Humusmehrende\norg. Substanz",null,"Menge\nt pro Hektar","Häq (t/FM)","Häq ",null,null,null,null,"Kornertrag","Ertrag Stroh t/ha",null,null,null,null,"Berechnung Strohertrag"]
[null,null,null,null,null,null,"Häq (t FM) \npro ha *a","Häq (t FM) \nGesamtfläche (Schlag) *a",null,null,"Stroherträge","dt/ha","konventionell","ökologisch",null,null,null,"Korn/Strohverh. Kon.","Korn/Strohverh. Öko."]
[null,1,null,null,null,{"$f":"IF(C52=\"\",\"\",VLOOKUP(C52,organische_Materialien,3,0))","v":""},{"$f":"IF(C52=\"\",\"\",E52*F52)","v":""},{"$f":"IF(C52=\"\",\"\",G52*$F$5)","v":""},null,null,{"$f":"IF(C52=\"\",\"\",C52)","v":""},null,{"$f":"IF(L52=\"\",\"\",(L52/10)*R52)","v":""},{"$f":"IF(L52=\"\",\"\",(L52/10)*S52)","v":""},null,null,null,{"$f":"IF(C52=\"\",\"\",VLOOKUP(C52,organische_Materialien,5,0))","v":""},{"$f":"IF(C52=\"\",\"\",VLOOKUP(C52,organische_Materialien,6,0))","v":""}]
[null,2,null,null,null,"","",{"$f":"IF(C53=\"\",\"\",G53*$F$5)","v":""},null,null,{"$f":"IF(C53=\"\",\"\",C53)","v":""},null,{"$f":"IF(L53=\"\",\"\",L53*R53)","v":""},{"$f":"IF(L53=\"\",\"\",L53*S53)","v":""},null,null,null,"",""]
[null,3,null,null,null,"","","",null,null,"",null,"","",null,null,null,"",""]
[null,4,null,null,null,"","","",null,null,"",null,"","",null,null,null,"",""]
[null,5,null,null,null,"","","",null,null,"",null,"","",null,null,null,"",""]
[null,6,null,null,null,"","","",null,null,"",null,"","",null,null,null,"",""]
[null,7,null,null,null,"","","",null,null,"",null,"","",null,null,null,"",""]
[null,8,null,null,null,"","","",null,null,"",null,"","",null,null,null,"",""]
[null,9,null,null,null,"","","",null,null,"",null,"","",null,null,null,"",""]
[null,10,null,null,null,"","","",null,null,"",null,"","",null,null,null,"",""]
[null,null,null,null,null,null,{"$f":"SUM(G52:G61)","v":0},{"$f":"G62*F5","v":0}]
[]
[]
[]
[null,null,"Bilanz",null,null,null,"Häq (t FM) \npro ha *a","Häq (t FM) \nGesamtfläche (Schlag) *a"]
[null,null,"Humuszehrende Früchte",null,null,null,{"$f":"G29","v":0},{"$f":"H29","v":0}]
[null,null,"Humusmehrende Früchte bzw. Erntereste",null,null,null,{"$f":"G46","v":0},{"$f":"H46","v":0}]
[null,null,"Humusmehrende org. Materialien",null,null,null,{"$f":"G62","v":0},{"$f":"H62","v":0}]
[null,null,"Summe der Kulturen bzw. Fruchtfolgen",null,null,null,{"$f":"SUM(G67:G69)","v":0},{"$f":"H67+H68+H69","v":0}]
[]
[null,null,"Humussaldo"]
[]
[null,null,"Betriebsform:",{"$f":"IF(G2=\"\",\"\",G2)","v":""},{"$f":"IF(G70=0,\"\",IF(D74=\"integriert\",IF(G70>=300,\"E\",IF(G70>101,\"D\",IF(G70>-75,\"C\",IF(G70>=-200,\"B\",\"A\")))),IF(G70>500,\"E\",IF(G70>=300,\"D\",IF(G70>=0,\"C\",IF(G70>=-200,\"B\",\"A\"))))))","v":""},{"$f":"IF(D74=\"\",\"\",IF(E74=\"A\",\"sehr niedrig\",IF(E74=\"B\",\"niedrig\",IF(E74=\"C\",\"mittel\",IF(E74=\"D\",\"hoch\",IF(E74=\"E\",\"sehr hoch\",0))))))","v":""}]
[]
[null,null,"Bewertung:",{"$f":"IF(D74=\"\",\"\",IF(E74=\"A\",\"ungünstige Beeinflussung von Bodenfunktion und Ertragsleistung\",IF(E74=\"B\",\"mittelfristig tolerierbar\",IF(E74=\"C\",\"Humusabbau wird durch die Humuszufuhr in der Fruchtfolge ausgegleichen\",IF(E74=\"D\",\"mittelfristig tolerierbar\",IF(E74=\"E\",\"Erhöhung der Mineralisationspotentials des Bodens (Möglichkeiten erhöhter Verluste und verminderter Düngeeffizienz)\",0))))))","v":""}]
[null,null,"Empfehlung:",{"$f":"IF(D74=\"\",\"\",IF(E74=\"A\",\"Änderung der Fruchtartenwahl\",IF(E74=\"B\",\"ausgeglichene Bilanz anstreben\",IF(E74=\"C\",\"keine\",IF(E74=\"D\",\"ausgeglichene Bilanz anstreben\",IF(E74=\"E\",\"Auf Einhaltung des zulässigen N Überschusses achten)\",0))))))","v":""}]
[null,null,"Sollten Sie weitere Fragen zu den Ergebnissen und deren Interpretation haben, wenden Sie sich butte an die Berater des LLH!"]

{"sheet":"organische Materialien","index":3,"n_rows":81,"n_cols":6,"rows_kept":81,"cut":false,"hidden":true,"merged":[]}
["organische Materialien","TM-%","Häq (t FM)-1",null,"Korn/Strohverhältnis\nkonventionell","Korn/Strohverhältnis\nökologisch"]
["Stroh",86,100,null,0.8,1.1000000000000001]
["Gründüngung, Rübenblatt, Marktabfälle, Grünschnitt TS 10 %",10,8]
["Gründüngung, Rübenblatt, Marktabfälle, Grünschnitt TS 20 %",20,16]
["Stallmist frisch TS 20 %",20,28]
["Stallmist frisch TS 30 %",30,40]
["Stallmist verrottet (auch Feststoff aus Gülleseparierung) TS 25 %",25,40]
["Stallmist verrottet (auch Feststoff aus Gülleseparierung) TS 35 %",35,56]
["Stallmist kompostiert TS 35 %",35,62]
["Stallmist kompostiert TS 55%",55,96]
["Gülle Schwein TS 4%",4,4]
["Gülle Schwein TS 8%",8,8]
["Gülle Rind 4 %",4,6]
["Gülle Rind 7 %",7,9]
["Gülle Rind TS 10 %",10,12]
["Geflügel (Kot) 15 %",15,12]
["Geflügel (Kot) 25 %",25,22]
["Geflügel (Kot) 35 %",35,30]
["Geflügel (Kot) 45 %",45,38]
["Bioabfall nicht verrottet TS 20 %",20,30]
["Bioabfall nicht verrottet TS 40 %",40,62]
["Bioabfall Frischkompost TS 30 %",30,40]
["Bioabfall Frischkompost TS 50 %",50,66]
["Bioabfall Fertigkompost 40 %",40,46]
["Bioabfall Fertigkompost 50 %",50,58]
["Bioabfall Fertigkompost 60 %",60,70]
["Klärschlamm ausgefault, ohne Zusätze TS 10 %",10,8]
["Klärschlamm ausgefault, ohne Zusätze TS 15 %",15,12]
["Klärschlamm ausgefault, ohne Zusätze TS 25 %",25,28]
["Klärschlamm ausgefault, ohne Zusätze TS 35 %",35,40]
["Klärschlamm ausgefault, ohne Zusätze TS 45 %",45,52]
["Klärschlamm kalkstabilisiert 20 %",20,16]
["Klärschlamm kalkstabilisiert 25 %",25,20]
["Klärschlamm kalkstabilisiert 35 %",35,36]
["Klärschlamm kalkstabilisiert 45 %",45,46]
["Klärschlamm kalkstabilisiert 55 %",55,56]
["Rindenkompost TS 30 %",30,60]
["Rindenkompost TS 50 %",50,100]
["See- und Teichschlamm TS 10 %",10,10]
["See- und Teichschlamm TS 40 %",40,40]
["Gärreste Biogas flüssig TS 4 %",4,6]
["Gärreste Biogas flüssig TS 4 %",7,9]
["Gärreste Biogas flüssig TS 4 %",10,12]
["Gärreste Biogas fest TS 25 %",25,36]
["Gärreste Biogas fest TS 35 %",35,50]
["Gärreste kompostiert TS 30 %",30,40]
["Gärreste kompostiert TS 60 %",60,70]
["Weizen 12% RPStroh",null,100,1,0.8,1.1000000000000001]
["Weizen 14% RP Stroh",null,100,1,0.8,1.1000000000000001]
["Wintergerste 12% RP Stroh",null,100,1,0.8,1.1000000000000001]
["Wintergerste 13% RP Stroh",null,100,1,0.8,1.1000000000000001]
["Winterroggen 11% RP Stroh",null,100,1,0.9,1.3]
["Winterroggen 12% RP Stroh",null,100,1,0.9,1.3]
["Triticale 12% RP Stroh",null,100,1,0.9,1.2]
["Triticale 13% RP Stroh",null,100,1,0.9,1.2]
["S.Futtergerste 12% RP Stroh",null,100,1,0.8,1]
["S.Futtergerste 13% RP Stroh",null,100,1,0.8,1]
["Braugerste 10% RP Stroh",null,100,1,0.7,1]
["Braugerste 11% RP Stroh",null,100,1,0.7,1]
["Hafer 11% RP Stroh",null,100,1,1.1000000000000001,1.1000000000000001]
["Hafer 12% RP Stroh",null,100,1,1.1000000000000001,1.1000000000000001]
["Dinkel Stroh",null,100,1,1,1.1000000000000001]
["Körnermais 10% RP Stroh",null,100,1,1,0.8]
["Körnermais 11% RP Stroh",null,100,1,1,0.8]
["Raps 23% RP Stroh",null,100,1,1.7,2]
["Öllein Stroh",null,100,1,1.7,2]
["Senf Stroh",null,100,1,1.7,2]
["Sonnenblumen 20% RP Stroh",null,100,1,2,2]
["Lieschkolben Kolben + Lieschbl.",null,100,1]
["Corn-Cob-Mix Kolben + teilw. Lieschbl.",null,100,1]
["Zuckerrüben Blatt",null,16,1,0.7,0.7]
["Massenrüben Blatt",null,16,1,0.4,0.4]
["Kartoffeln Blatt",null,16,1]
["Klee-/Luzernesamen Stroh",null,100,1]
["Grassamen Stroh",null,100,1]
["Leguminosen",null,600,1]
["Winterzwischenfrucht",null,140,1]
["Leguminosen/Ackergras Misch.",null,600,1]
["Stoppelfrucht",null,100,1]
["Grünerbse Hülse 100 dt FM/ha Hülse",null,16,1]
["Hopfen Rebenhäcksel",null,16,1]

{"sheet":"zehrer","index":4,"n_rows":196,"n_cols":17,"rows_kept":196,"cut":false,"hidden":true,"merged":[]}
[null,null,null,null,null,null,"Korn/Stroh Verh.","Grobfutter","Frischmasse","Frischmasse","Frischmasse","unvermeidbare N-Verluste","Humusmehrend/Zehrend","niedirige Werte","mittlere Werte","obere Werte","Humuszehrer Grupper"]
[1,"Getre","Weizen 12% RP Korn","Frischmasse","86","Korn",null,null,1.81,0.8,0.6,null,"zehrend",-280,-400,-520,"Gruppe 4"]
[3,"Getre","Weizen 14% RP Korn","Frischmasse","86","Korn",null,null,2.11,0.8,0.6,null,"zehrend",-280,-400,-520,"Gruppe 4"]
[5,"Getre","Weizen 16% RP Korn","Frischmasse","86","Korn",null,null,2.41,0.8,0.6,null,"zehrend",-280,-400,-520,"Gruppe 4"]
[7,"Getre","Wintergerste 12% RP Korn","Frischmasse","86","Korn",null,null,1.65,0.8,0.6,null,"zehrend",-280,-400,-520,"Gruppe 4"]
[9,"Getre","Wintergerste 13% RP Korn","Frischmasse","86","Korn",null,null,1.79,0.8,0.6,null,"zehrend",-280,-400,-520,"Gruppe 4"]
[11,"Getre","Winterroggen 11% RP Korn","Frischmasse","86","Korn",null,null,1.51,0.8,0.6,null,"zehrend",-280,-400,-520,"Gruppe 4"]
[13,"Getre","Winterroggen 12% RP Korn ","Frischmasse","86","Korn",null,null,1.65,0.8,0.6,null,"zehrend",-280,-400,-520,"Gruppe 4"]
[15,"Getre","Triticale 12% RP Korn","Frischmasse","86","Korn",null,null,1.65,0.8,0.6,null,"zehrend",-280,-400,-520,"Gruppe 4"]
[17,"Getre","Triticale 13% RP Korn","Frischmasse","86","Korn",null,null,1.79,0.8,0.6,null,"zehrend",-280,-400,-520,"Gruppe 4"]
[19,"Getre","S.Futtergerste 12% RP Korn","Frischmasse","86","Korn",null,null,1.65,0.8,0.6,null,"zehrend",-280,-400,-520,"Gruppe 4"]
[21,"Getre","S.Futtergerste 13% RP Korn","Frischmasse","86","Korn",null,null,1.79,0.8,0.6,null,"zehrend",-280,-400,-520,"Gruppe 4"]
[23,"Getre","Braugerste 10% RP Korn","Frischmasse","86","Korn",null,null,1.38,0.8,0.6,null,"zehrend",-280,-400,-520,"Gruppe 4"]
[25,"Getre","Braugerste 11% RP Korn ","Frischmasse","86","Korn",null,null,1.51,0.8,0.6,null,"zehrend",-280,-400,-520,"Gruppe 4"]
[27,"Getre","Hafer 11% RP Korn","Frischmasse","86","Korn",null,null,1.51,0.8,0.6,null,"zehrend",-280,-400,-520,"Gruppe 4"]
[29,"Getre","Hafer 12% RP Korn ","Frischmasse","86","Korn",null,null,1.65,0.8,0.6,null,"zehrend",-280,-400,-520,"Gruppe 4"]
[31,"Getre","Dinkel (m.Spelz) Korn","Frischmasse","86","Korn",null,null,1.6,0.8,0.8,null,"zehrend",-280,-400,-520,"Gruppe 4"]
[33,"Getre","Durum Korn ","Frischmasse","86","Korn",null,null,2.2599999999999998,0.8,0.6,null,"zehrend",-280,-400,-520,"Gruppe 4"]
[34,"Getre","Körnermais 10% RP Korn","Frischmasse","86","Korn",null,null,1.38,0.8,0.5,null,"zehrend",-280,-400,-520,"Gruppe 4"]
[36,"Getre","Körnermais 11% RP Korn","Frischmasse","86","Korn",null,null,1.51,0.8,0.5,null,"zehrend",-280,-400,-520,"Gruppe 4"]
[46,"Ölfrü","Raps 23% RP Korn","Frischmasse","91","Korn",null,null,3.35,1.8,1,null,"zehrend",-280,-400,-520,"Gruppe 4"]
[48,"Ölfrü","Öllein Korn","Frischmasse","91","Korn",null,null,3.5,1.2,1,null,"zehrend",-280,-400,-520,"Gruppe 4"]
[50,"Ölfrü","Senf Korn","Frischmasse","91","Korn",null,null,5.08,1.77,0.93,null,"zehrend",-280,-400,-520,"Gruppe 4"]
[52,"Ölfrü","Sonnenblumen 20% RP Korn","Frischmasse","91","Korn",null,null,2.91,1.6,2.4,null,"zehrend",-280,-400,-520,"Gruppe 4"]
[54,"Ackfu","Silomais (28% TM) Ganzpflanze","Frischmasse","28","Grobfutter",null,1.1499999999999999,0.38,0.16,0.45,null,"zehrend",-560,-800,-1040,"Gruppe 3"]
[55,"Ackfu","Silomais (32% TM) Ganzpflanze","Frischmasse","32","Grobfutter",null,1.1499999999999999,0.43,0.18,0.51,null,"zehrend",-560,-800,-1040,"Gruppe 3"]
[61,"Hackfr","Zuckerrüben Rüben","Frischmasse","23","Rüben ",null,null,0.18,0.1,0.25,null,"zehrend",-760,-1300,-1840,"Gruppe 1"]
[62,"Hackfr","Gehaltsrüben Rüben","Frischmasse","15","Rüben ",null,null,0.18,0.1,0.25,null,"zehrend",-760,-1300,-1840,"Gruppe 1"]
[64,"Hackfr","Massenrüben Rüben","Frischmasse","12","Rüben ",null,null,0.14000000000000001,7.0000000000000007E-2,0.45,null,"zehrend",-760,-1300,-1840,"Gruppe 1"]
[66,"Hackfr","Kartoffeln Knollen","Frischmasse","22","Knollen",null,null,0.35,0.14000000000000001,0.6,null,"zehrend",-760,-1000,-1240,"Gruppe 2"]
[67,"Faserpfl","Flachs (Faserlein) Ganzpflanze","Frischmasse","86","GP ",null,null,1,0.6,1.6,null,"zehrend",-280,-400,-520,"Gruppe 4"]
[68,"Faserpfl","Hanf (100-150 dt TM) Ganzpflanze","Frischmasse","40","GP ",null,null,0.4,0.24,0.09,null,"zehrend",-280,-400,-520,"Gruppe 4"]
[69,"Faserpfl","Micanthus Ganzpflanze","Frischmasse","80","GP ",null,null,0.15,0.12,0.6,null,"zehrend",-280,-400,-520,"Gruppe 1"]
[70,"Ganzpfl","Triticale (Mich- bis Teigreife) Ganzpflanze","Frischmasse","20","Grobfutter",null,1.1499999999999999,0.39,0.21,0.48,null,"zehrend",-280,-400,-520,"Gruppe 2"]
[71,"Ganzpfl","Weizen (Milch- bis Teigreife) Ganzpflanze","Frischmasse","20","Grobfutter",null,1.1499999999999999,0.49,0.2,0.41,null,"zehrend",-280,-400,-520,"Gruppe 4"]
[72,"Ganzpfl","Sonnenblume (Zitronenreife) Ganzpflanze","Frischmasse","20","GP ",null,null,0.47,0.12,0.98,null,"zehrend",-280,-400,-520,"Gruppe 4"]
[73,"Ganzpfl","Sonnenblume/Mais Ganzpflanze","Frischmasse","20","GP ",null,null,0.34,0.17,0.72,null,"zehrend",-280,-400,-520,"Gruppe 1"]
[74,"Ganzpfl","Getreide allg. Ganzpflanze","Frischmasse","20","Grobfutter",null,1.1499999999999999,0.56000000000000005,0.28000000000000003,0.49,null,"zehrend",-280,-400,-520,"Gruppe 2"]
[75,"Ganzpfl","Hafer (Milchreife) Ganzpflanze","Frischmasse","20","Grobfutter",null,1.1499999999999999,0.53,0.22,0.94,null,"zehrend",-280,-400,-520,"Gruppe 4"]
[76,"Ganzpfl","Sudangras (Teigreife) Ganzpflanze","Frischmasse","28","GP ",null,null,0.27,0.23,0.38,null,"zehrend",-280,-400,-520,"Gruppe 4"]
[102,"Sonst","Reben (Trauben) ",null,null,null,null,null,0.25,0.1,0.4,null,"zehrend",-280,-400,-520,"Gruppe 1"]
[103,"Sonst","Topinambur Blatt","Frischmasse",null,null,null,null,0.22,7.0000000000000007E-2,0.43,null,"zehrend",-280,-400,-520,"Gruppe 2"]
[104,"Sonst","Topinambur Knollen","Frischmasse",null,null,null,null,0.23,0.15,0.63,null,"zehrend",-280,-400,-520,"Gruppe 4"]
[105,"Sonst","Topinambur Knollen + Blatt","Frischmasse",null,null,null,null,0.28000000000000003,0.17,0.73,null,"zehrend",-280,-400,-520,"Gruppe 4"]
[106,"Sonst","Wein ",null,null,null,null,null,0.02,0.02,7.0000000000000007E-2]
[107,"Sonst","Blumenkohl         350 dt FM/ha ","Frischmasse",null,"Gemüse",null,null,0.28000000000000003,0.11,0.36,-60,"zehrend",-760,-1000,-1240,"Gruppe 2"]
[108,"Sonst","Bockshornklee      5 dt FM/ha Samen (Droge)",null,null,null,null,null,3.87,1.4,1.53]
[109,"Sonst","Bockshornklee     20 dt FM/ha Kraut z.Samenernte",null,null,null,null,null,0.68,0.42,0.82]
[110,"Sonst","Bohnenkraut      150 dt FM/ha Abgeblühtes Kraut",null,null,null,null,null,0.85,0.27,0.62,null,"zehrend",-280,-400,-520,"Gruppe 4"]
[111,"Sonst","Bohnenkraut einj.450 dt FM/ha Blühendes Kraut",null,null,null,null,null,0.32,0.12,0.49,null,"zehrend",-280,-400,-520,"Gruppe 4"]
[112,"Sonst","Borretsch           700 dt FM/ha Blühendes Kraut",null,null,null,null,null,0.15,0.05,0.44,null,"zehrend",-280,-400,-520,"Gruppe 4"]
[113,"Sonst","Brokkoli              200 dt FM/ha ","Frischmasse",null,"Gemüse",null,null,0.45,0.15,0.46,-60,"zehrend",-760,-1000,-1240,"Gruppe 2"]
[114,"Sonst","Buschbohnen      120 dt FM/ha Frischmarkt","Frischmasse",null,"Gemüse",null,null,0.25,0.09,0.3,-60,"zehrend",-280,-400,-520,"Gruppe 4"]
[115,"Sonst","Buschbohnen      80 dt FM/ha Industrie","Frischmasse",null,"Gemüse",null,null,0.25,0.09,0.3,-60,"zehrend",-280,-400,-520,"Gruppe 4"]
[116,"Sonst","Chicoree             450 dt FM/ha ","Frischmasse",null,"Gemüse",null,null,0.25,0.12,0.54,null,"zehrend",-560,-800,-1040,"Gruppe 3"]
[117,"Sonst","Chinakohl           700 dt FM/ha ","Frischmasse",null,"Gemüse",null,null,0.15,0.1,0.28999999999999998,-60,"zehrend",-760,-1000,-1240,"Gruppe 2"]
[118,"Sonst","Dill                     300 dt FM/ha ","Frischmasse",null,"Gemüse",null,null,0.3,0.09,0.6,-60,"zehrend",-280,-400,-520,"Gruppe 4"]
[119,"Sonst","Dill, Industiware","Frischmasse",null,"Gemüse",null,null,0.3,0.09,0.6,-60,"zehrend",-280,-400,-520,"Gruppe 4"]
[120,"Sonst","Eichblatt             400 dt FM/ha ","Frischmasse",null,"Gemüse",null,null,0.19,7.0000000000000007E-2,0.38,-60,"zehrend",-280,-400,-520,"Gruppe 4"]
[121,"Sonst","Einlegegurke       700 dt FM/ha ","Frischmasse",null,"Gemüse",null,null,0.15,7.0000000000000007E-2,0.24,-60]
[122,"Sonst","Eissalat              450 dt FM/ha ","Frischmasse",null,"Gemüse",null,null,0.15,0.06,0.3,-60,"zehrend",-280,-400,-520,"Gruppe 4"]
[123,"Sonst","Endivien              600 dt FM/ha ","Frischmasse",null,"Gemüse",null,null,0.25,0.06,0.55000000000000004,-60,"zehrend",-280,-400,-520,"Gruppe 4"]
[124,"Sonst","Endivien Frisée","Frischmasse",null,"Gemüse",null,null,0.25,null,null,-60,"zehrend",-280,-400,-520,"Gruppe 4"]
[125,"Sonst","Feldsalat            80 dt FM/ha ","Frischmasse",null,"Gemüse",null,null,0.45,0.1,0.65,-60,"zehrend",-280,-400,-520,"Gruppe 4"]
[126,"Sonst","Feldsalat, großblättrig","Frischmasse",null,"Gemüse",null,null,0.46,0.1,0.65,-60,"zehrend",-280,-400,-520,"Gruppe 4"]
[127,"Sonst","Fenchel              400 dt FM/ha ","Frischmasse",null,"Gemüse",null,null,0.2,7.0000000000000007E-2,0.48,-60,"zehrend",-280,-400,-520,"Gruppe 4"]
[128,"Sonst","Gemüseerbse","Frischmasse",null,"Gemüse",null,null,1,null,null,-60,"zehrend",-280,-400,-520,"Gruppe 4"]
[]
[130,"Sonst","Grünerbse Korn    50 dt FM/ha Korn","Frischmasse",null,"Gemüse",null,null,1,0.23,0.36,-60,"zehrend",-280,-400,-520,"Gruppe 4"]
[131,"Sonst","Grünkohl            400 dt FM/ha ","Frischmasse",null,"Gemüse",null,null,0.49,0.17,0.59,-60,"zehrend",-280,-400,-520,"Gruppe 4"]
[132,"Sonst","Gurke Einleger","Frischmasse",null,"Gemüse",null,null,0.17100000000000001,null,null,-60,"zehrend",-760,-1000,-1240,"Gruppe 2"]
[133,"Sonst","Hopfen Dolden",null,null,null,null,null,3,1,3,null,"zehrend",-280,-400,-520,"Gruppe 4"]
[]
[135,"Sonst","Kohlrabi             450 dt FM/ha ","Frischmasse",null,"Gemüse",null,null,0.28000000000000003,0.11,0.42,-60,"zehrend",-280,-400,-520,"Gruppe 4"]
[136,"Sonst","Kohlrübe","Frischmasse",null,"Gemüse",null,null,0.26,null,null,-60]
[137,"Sonst","Kopfsalat            500 dt FM/ha ","Frischmasse",null,"Gemüse",null,null,0.18,7.0000000000000007E-2,0.36,-60,"zehrend",-280,-400,-520,"Gruppe 4"]
[138,"Sonst","Kürbis","Frischmasse",null,"Gemüse",null,null,0.25,null,null,null,"zehrend",-760,-1000,-1240,"Gruppe 2"]
[139,"Sonst","Lollo Salat ","Frischmasse",null,"Gemüse",null,null,0.19,7.0000000000000007E-2,0.38,-60,"zehrend",-280,-400,-520,"Gruppe 4"]
[140,"Sonst","Mairüben","Frischmasse",null,"Gemüse",null,null,0.17,null,null,-60]
[141,"Sonst","Möhre Industrie","Frischmasse",null,"Gemüse",null,null,0.13,null,null,null,"zehrend",-560,-800,-1040,"Gruppe 3"]
[142,"Sonst","Möhren   Bund    600 dt FM/ha Bund","Frischmasse",null,"Gemüse",null,null,0.13,0.09,0.53,null,"zehrend",-560,-800,-1040,"Gruppe 3"]
[143,"Sonst","Möhren Wasch    700dt FM/ha                Wasch","Frischmasse",null,"Gemüse",null,null,0.13,0.09,0.42,null,"zehrend",-560,-800,-1040,"Gruppe 3"]
[144,"Sonst","Most ",null,null,null,null,null,0.06,0.04,0.14000000000000001]
[145,"Sonst","Paprika              500 dt FM/ha ","Frischmasse",null,"Gemüse",null,null,0.23,0.08,0.28999999999999998,-60,"zehrend",-560,-800,-1040,"Gruppe 3"]
[146,"Sonst","Pastinaken","Frischmasse",null,"Gemüse",null,null,0.25,null,null,null,"zehrend",-560,-800,-1040,"Gruppe 3"]
[147,"Sonst","Petersilie erster Schnitt","Frischmasse",null,"Gemüse",null,null,0.45,0.11,0.66,-60]
[148,"Sonst","Petersilie, nach einem Schnitt","Frischmasse",null,"Gemüse",null,null,0.45,null,null,-60]
[149,"Sonst","Petersilie, Wurzel","Frischmasse",null,"Gemüse",null,null,0.42]
[150,"Sonst","Porree                400 dt FM/ha  ","Frischmasse",null,"Gemüse",null,null,0.25,0.09,0.36,-60,"zehrend",-760,-1000,-1240,"Gruppe 2"]
[151,"Sonst","Radicchio           280 dt FM/ha ","Frischmasse",null,"Gemüse",null,null,0.25,0.09,0.48,-60,"zehrend",null,null,null,"Gruppe 2"]
[152,"Sonst","Radies               300 dt FM/ha  ","Frischmasse",null,"Gemüse",null,null,0.2,7.0000000000000007E-2,0.34,-60,"zehrend",-280,-400,-520,"Gruppe 4"]
[153,"Sonst","Rettich 550 dt FM/ha Deutscher","Frischmasse",null,"Gemüse",null,null,0.14000000000000001,0.09,0.4,-60,"zehrend",-280,-400,-520,"Gruppe 4"]
[154,"Sonst","Rettich 900 dt FM/ha Japaner","Frischmasse",null,"Gemüse",null,null,0.1,7.0000000000000007E-2,0.34,-60,"zehrend",-280,-400,-520,"Gruppe 4"]
[155,"Sonst","Rettich Bund      500 dt FM/ha           Bund","Frischmasse",null,"Gemüse",null,null,0.17,0.09,0.36,-60,"zehrend",-280,-400,-520,"Gruppe 4"]
[156,"Sonst","Rhababer","Frischmasse",null,"Gemüse",null,null,0.18,null,null,-60,"zehrend",-760,-1000,-1240,"Gruppe 2"]
[157,"Sonst","Romana  ","Frischmasse",null,"Gemüse",null,null,0.2,0.09,0.4,-60,"zehrend",-280,-400,-520,"Gruppe 4"]
[158,"Sonst","Romana Herzen","Frischmasse",null,"Gemüse",null,null,0.24,null,null,-60,"zehrend",-280,-400,-520,"Gruppe 4"]
[159,"Sonst","Rosenkohl 250 dt FM/ha ","Frischmasse",null,"Gemüse",null,null,0.65,0.2,0.66,-60]
[160,"Sonst","Rote Rüben Bund 500 dt FM/ha Bund","Frischmasse",null,"Gemüse",null,null,0.27,0.11,0.55000000000000004,-60,"zehrend",-280,-400,-520,"Gruppe 4"]
[161,"Sonst","Rote Rüben Knoll 600 dt FM/ha Knolle","Frischmasse",null,"Gemüse",null,null,0.28000000000000003,0.11,0.48,-60,"zehrend",-280,-400,-520,"Gruppe 4"]
[162,"Sonst","Rotkohl 500 dt FM/ha ","Frischmasse",null,"Gemüse",null,null,0.22,0.09,0.36,-60,"zehrend",-760,-1000,-1240,"Gruppe 2"]
[163,"Sonst","Rucula, Feinware","Frischmasse",null,"Gemüse",null,null,0.4,null,null,-60,"zehrend",null,null,null,"Gruppe 2"]
[164,"Sonst","Rucula, Grobware","Frischmasse",null,"Gemüse",null,null,0.4,null,null,-60]
[165,"Sonst","Schnittlauch        300 dt FM/ha ","Frischmasse",null,"Gemüse",null,null,0.5,0.14000000000000001,0.54,-60,"zehrend",-280,-400,-520,"Gruppe 4"]
[166,"Sonst","Schwarzwurzel","Frischmasse",null,"Gemüse",null,null,0.23,null,null,null,"zehrend",-560,-800,-1040,"Gruppe 3"]
[167,"Sonst","Sellerie               500 dt FM/ha Stangen","Frischmasse",null,"Gemüse",null,null,0.25,0.11,0.54,-60,"zehrend",-760,-1000,-1240,"Gruppe 2"]
[168,"Sonst","Sellerie Bund   ","Frischmasse",null,"Gemüse",null,null,0.27,0.13,0.56999999999999995,-60,"zehrend",-760,-1000,-1240,"Gruppe 2"]
[169,"Sonst","Sellerie Knolle     500 dt FM/ha Knolle; Industrie","Frischmasse",null,"Gemüse",null,null,0.25,0.16,0.54,-60,"zehrend",-760,-1000,-1240,"Gruppe 2"]
[170,"Sonst","Spargel                 40 dt FM/ha ","Frischmasse",null,"Gemüse",null,null,0.26,8.2000000000000003E-2,null,-60,"zehrend",null,null,null,"Gruppe 2"]
[171,"Sonst","Spinat Blatt Baby","Frischmasse",null,"Gemüse",null,null,0.45,0.11,0.66,-60,"zehrend",-280,-400,-520,"Gruppe 4"]
[172,"Sonst","Spinat Blatt Standart","Frischmasse",null,"Gemüse",null,null,0.4,0.11,0.66,-60,"zehrend",-280,-400,-520,"Gruppe 4"]
[173,"Sonst","Spinat Hack Standart","Frischmasse",null,"Gemüse",null,null,0.36,0.11,0.66,-60,"zehrend",-280,-400,-520,"Gruppe 4"]
[174,"Sonst","Stangenbohnen   250 dt FM/ha ","Frischmasse",null,"Gemüse",null,null,0.25,0.09,0.3,null,"zehrend",-280,-400,-520,"Gruppe 4"]
[175,"Sonst","Steinobst           200 dt FM/ha ","Frischmasse",null,null,null,null,0.25,0.06,0.4]
[176,"Sonst","Tabak (Burley + DLT) Blätter",null,null,null,null,null,4,1.3,6.9,null,"zehrend",-280,-400,-520,"Gruppe 4"]
[177,"Sonst","Tabak (Virgin) Blätter",null,null,null,null,null,2.1,0.77,6.7,null,"zehrend",-280,-400,-520,"Gruppe 4"]
[178,"Sonst","Tomaten             450 dt FM/ha ","Frischmasse",null,"Gemüse",null,null,0.16,0.05,0.39,-60,"zehrend",-760,-1000,-1240,"Gruppe 2"]
[179,"Sonst","Weißkohl Frischmarkt","Frischmasse",null,"Gemüse",null,null,0.2,0.08,0.31,-60,"zehrend",-760,-1000,-1240,"Gruppe 2"]
[180,"Sonst","Weißkohl, Industrie","Frischmasse",null,"Gemüse",null,null,0.2,null,null,-60,"zehrend",-760,-1000,-1240,"Gruppe 2"]
[181,"Sonst","Wirsing               350 dt FM/ha ","Frischmasse",null,"Gemüse",null,null,0.35,0.12,0.39,-60,"zehrend",-760,-1000,-1240,"Gruppe 2"]
[182,"Sonst","Zucchini           500 dt FM/ha ","Frischmasse",null,"Gemüse",null,null,0.16,0.06,0.2,-60,"zehrend",-760,-1000,-1240,"Gruppe 2"]
[183,"Sonst","Zuckerhirse (Milch- bis Teigreife) Ganzpflanze","Frischmasse","28","GP ",null,null,0.35,0.17,0.52]
[184,"Sonst","Zuckerhut            600 dt FM/ha ","Frischmasse",null,"Gemüse",null,null,0.2,0.11,0.3,-60]
[185,"Sonst","Zuckermais         200 dt FM/ha ","Frischmasse",null,"Gemüse",null,null,0.35,0.16,0.26,-60,"zehrend",-560,-800,-1040,"Gruppe 3"]
[186,"Sonst","Zwiebel Bund","Frischmasse",null,"Gemüse",null,null,0.2,0.09,0.24,-60,"zehrend",-280,-400,-520,"Gruppe 4"]
[187,"Sonst","Zwiebel Trocken","Frischmasse",null,"Gemüse",null,null,0.18,0.09,0.24,null,"zehrend",-280,-400,-520,"Gruppe 4"]
[188,"Sonst","Erdbeere            200 dt FM/ha ","Frischmasse",null,null,null,null,0.17,0.05,0.28000000000000003,null,"zehrend",-280,-400,-520,"Gruppe 4"]
[189,"Sonst","Himbeere           100 dt FM/ha  ","Frischmasse",null,null,null,null,0.2,0.04,0.2]
[190,"Sonst","Johannisbeere    100 dt FM/ha ","Frischmasse",null,null,null,null,0.2,0.04,0.2]
[191,"Sonst","Kernobst            400 dt FM/ha ","Frischmasse",null,null,null,null,0.11,0.03,0.19]
[192,"Sonst","Ackerschachtelh.  50 dt FM/ha Kraut (sterile Triebe)",null,null,null,null,null,0.5,0.23,0.74,null,"zehrend",-280,-400,-520,"Gruppe 4"]
[193,"Sonst","Alant                  130 dt FM/ha Krauternterückstän.",null,null,null,null,null,0.28000000000000003,7.0000000000000007E-2,0.99,null,"zehrend",-280,-400,-520,"Gruppe 4"]
[194,"Sonst","Alant                  300 dt FM/ha Wurzeln",null,null,null,null,null,0.5,0.21,0.76,null,"zehrend",-280,-400,-520,"Gruppe 4"]
[195,"Sonst","Arzneifenchel        25 dt FM/ha Früchte ( Droge! )",null,null,null,null,null,2.78,1.26,2.58,null,"zehrend",-280,-400,-520,"Gruppe 4"]
[196,"Sonst","Arzneifenchel      150 dt FM/ha Kraut ohne Früchte",null,null,null,null,null,0.39,0.16,1.1499999999999999,null,"zehrend",-280,-400,-520,"Gruppe 4"]
[197,"Sonst","Baldrian             150 dt FM/ha Wurzeln",null,null,null,null,null,0.28999999999999998,0.19,0.41,null,"zehrend",-280,-400,-520,"Gruppe 4"]
[198,"Sonst","Baldrian             200 dt FM/ha Krauternterückst.",null,null,null,null,null,0.28000000000000003,0.1,0.5,null,"zehrend",-280,-400,-520,"Gruppe 4"]
[199,"Sonst","Bergarnika           40 dt FM/ha Blütenkörbe",null,null,null,null,null,0.4,0.16,0.48,null,"zehrend",-280,-400,-520,"Gruppe 4"]
[200,"Sonst","Bergarnika           60 dt FM/ha Wurzeln",null,null,null,null,null,0.68,0.3,0.65,null,"zehrend",-280,-400,-520,"Gruppe 4"]
[201,"Sonst","Bergarnika           70 dt FM/ha Krauternterückst.",null,null,null,null,null,0.47,0.16,0.74,null,"zehrend",-280,-400,-520,"Gruppe 4"]
[202,"Sonst","Bergbohnenkraut130 dt FM/ha Kraut",null,null,null,null,null,0.32,0.11,0.72,null,"zehrend",-280,-400,-520,"Gruppe 4"]
[203,"Sonst","Bergbohnenkraut135 dt FM/ha Blühendes Kraut",null,null,null,null,null,0.65,0.16,0.74,null,"zehrend",-280,-400,-520,"Gruppe 4"]
[204,"Sonst","Bibernelle (kl.)     70 dt FM/ha Wurzeln",null,null,null,null,null,0.35,0.17,0.51,null,"zehrend",-280,-400,-520,"Gruppe 4"]
[205,"Sonst","Bibernelle (kl.)    250 dt FM/ha Krauternterückst.",null,null,null,null,null,0.45,0.21,0.85,null,"zehrend",-280,-400,-520,"Gruppe 4"]
[206,"Sonst","Brennessel (gr.)    80 dt FM/ha Wurzeln",null,null,null,null,null,0.38,0.2,0.51,null,"zehrend",-280,-400,-520,"Gruppe 4"]
[207,"Sonst","Brennessel (gr.)  400 dt FM/ha Nicht blüh.Kraut",null,null,null,null,null,0.59,0.16,0.69,null,"zehrend",-280,-400,-520,"Gruppe 4"]
[208,"Sonst","Brennessel (kl.)  120 dt FM/ha Blühendes Kraut",null,null,null,null,null,0.7,0.15,0.79,null,"zehrend",-280,-400,-520,"Gruppe 4"]
[209,"Sonst","Dost                  120 dt FM/ha Blühendes Kraut",null,null,null,null,null,0.5,0.14000000000000001,0.52,null,"zehrend",-280,-400,-520,"Gruppe 4"]
[210,"Sonst","Drachenkopf       500 dt FM/ha Blühendes Kraut",null,null,null,null,null,0.27,0.11,0.65,null,"zehrend",-280,-400,-520,"Gruppe 4"]
[211,"Sonst","Eibisch              100 dt FM/ha Krauternterückst.",null,null,null,null,null,0.22,7.0000000000000007E-2,0.8,null,"zehrend",-280,-400,-520,"Gruppe 4"]
[212,"Sonst","Eibisch              150 dt FM/ha Wurzeln",null,null,null,null,null,0.66,0.3,0.72,null,"zehrend",-280,-400,-520,"Gruppe 4"]
[213,"Sonst","Engelwurz          200 dt FM/ha Wurzeln",null,null,null,null,null,0.3,0.23,0.65,null,"zehrend",-280,-400,-520,"Gruppe 4"]
[214,"Sonst","Engelwurz          400 dt FM/ha Krauternterückst.",null,null,null,null,null,0.15,7.0000000000000007E-2,0.72,null,"zehrend",-280,-400,-520,"Gruppe 4"]
[215,"Sonst","Estragon            110 dt FM/ha Abgeblühtes Kraut",null,null,null,null,null,0.76,0.16,0.62,null,"zehrend",-280,-400,-520,"Gruppe 4"]
[216,"Sonst","Estragon (dtsch) 150 dt FM/ha Nicht blüh.Kraut",null,null,null,null,null,0.55000000000000004,0.16,0.88,null,"zehrend",-280,-400,-520,"Gruppe 4"]
[217,"Sonst","Goldrute             210 dt FM/ha Blühhorizont",null,null,null,null,null,0.6,0.21,0.77,null,"zehrend",-280,-400,-520,"Gruppe 4"]
[218,"Sonst","Johanniskraut     200 dt FM/ha Blühendes Kraut",null,null,null,null,null,0.53,0.2,0.6,null,"zehrend",-280,-400,-520,"Gruppe 4"]
[219,"Sonst","Kamille                40 dt FM/ha Blüten",null,null,null,null,null,0.42,0.21,0.54,null,"zehrend",-560,-800,-1040,"Gruppe 3"]
[220,"Sonst","Kamille                60 dt FM/ha Kraut ohne Blüten",null,null,null,null,null,0.26,0.09,0.53,null,"zehrend",-560,-800,-1040,"Gruppe 3"]
[221,"Sonst","Knoblauch            20 dt FM/ha Krauternterückst.get",null,null,null,null,null,0.65,0.23,0.57999999999999996,null,"zehrend",-560,-800,-1040,"Gruppe 3"]
[222,"Sonst","Knoblauch            80 dt FM/ha Zehen",null,null,null,null,null,0.61,0.28999999999999998,0.52,null,"zehrend",-560,-800,-1040,"Gruppe 3"]
[223,"Sonst","Kornblume            70 dt FM/ha Blüten",null,null,null,null,null,0.44,0.19,0.5,null,"zehrend",-280,-400,-520,"Gruppe 4"]
[224,"Sonst","Kornblume          130 dt FM/ha Kraut ohne Blüten",null,null,null,null,null,0.7,7.0000000000000007E-2,0.88,null,"zehrend",-280,-400,-520,"Gruppe 4"]
[225,"Sonst","Kornblume          200 dt FM/ha Blühendes Kraut",null,null,null,null,null,0.37,0.1,0.63,null,"zehrend",-280,-400,-520,"Gruppe 4"]
[226,"Sonst","Kümmel               12 dt FM/ha Samen",null,null,null,null,null,3.31,0.98,1.2,null,"zehrend",-280,-400,-520,"Gruppe 4"]
[227,"Sonst","Liestöckel          120 dt FM/ha Wurzeln",null,null,null,null,null,0.21,0.15,0.24,null,"zehrend",-280,-400,-520,"Gruppe 4"]
[228,"Sonst","Liestöckel          550 dt FM/ha Nicht blüh.Kraut",null,null,null,null,null,0.37,0.11,0.5,null,"zehrend",-280,-400,-520,"Gruppe 4"]
[229,"Sonst","Majoran             200 dt FM/ha Kraut bei Blühbeg.",null,null,null,null,null,0.48,0.14000000000000001,0.59,null,"zehrend",-280,-400,-520,"Gruppe 4"]
[230,"Sonst","Malve (blaue)     100 dt FM/ha Blüten",null,null,null,null,null,0.3,0.16,0.47,null,"zehrend",-560,-800,-1040,"Gruppe 3"]
[231,"Sonst","Malve (blaue)     400 dt FM/ha Kraut ohne Blüten",null,null,null,null,null,0.41,0.18,0.8,null,"zehrend",-560,-800,-1040,"Gruppe 3"]
[232,"Sonst","Malve (blaue)     500 dt FM/ha Blühendes Kraut",null,null,null,null,null,0.35,0.16,0.69,null,"zehrend",-560,-800,-1040,"Gruppe 3"]
[233,"Sonst","Meerrettich        200 dt FM/ha Wurzeln (Seitenw.)",null,null,null,null,null,0.69,0.22,0.75,null,"zehrend",-560,-800,-1040,"Gruppe 3"]
[234,"Sonst","Meerrettich        250 dt FM/ha Krauternterückst.",null,null,null,null,null,0.38,0.1,0.64,null,"zehrend",-560,-800,-1040,"Gruppe 3"]
[235,"Sonst","Melisse             300 dt FM/ha Nicht blüh.Kraut",null,null,null,null,null,0.59,0.18,0.59]
[236,"Sonst","Mutterkraut        120 dt FM/ha Blühendes Kraut",null,null,null,null,null,0.45,0.16,0.8,null,"zehrend",-280,-400,-520,"Gruppe 4"]
[237,"Sonst","Nachtkerze          13 dt FM/ha Samen",null,null,null,null,null,2.06,1.1200000000000001,0.66,null,"zehrend",-280,-400,-520,"Gruppe 4"]
[238,"Sonst","Nachtkerze        140 dt FM/ha Kraut",null,null,null,null,null,0.35,0.14000000000000001,0.48,null,"zehrend",-280,-400,-520,"Gruppe 4"]
[239,"Sonst","Pfefferminze       400 dt FM/ha Nicht blüh.Kraut",null,null,null,null,null,0.42,0.11,0.55000000000000004,null,"zehrend",-280,-400,-520,"Gruppe 4"]
[240,"Sonst","Ringelblume         50 dt FM/ha Blütenkörbe",null,null,null,null,null,0.3,0.12,0.46,null,"zehrend",-560,-800,-1040,"Gruppe 3"]
[241,"Sonst","Ringelblume       450 dt FM/ha Kraut ohne Blüten",null,null,null,null,null,0.28999999999999998,7.0000000000000007E-2,0.7,null,"zehrend",-560,-800,-1040,"Gruppe 3"]
[242,"Sonst","Ringelblume       600 dt FM/ha Blühendes Kraut",null,null,null,null,null,0.28999999999999998,7.0000000000000007E-2,0.5,null,"zehrend",-560,-800,-1040,"Gruppe 3"]
[243,"Sonst","Salbei                350 dt FM/ha Nicht blüh.Kraut",null,null,null,null,null,0.49,0.11,0.62,null,"zehrend",-280,-400,-520,"Gruppe 4"]
[244,"Sonst","Schabzigerklee   300 dt FM/ha Blühendes Kraut",null,null,null,null,null,0.37,0.08,0.66]
[245,"Sonst","Schafgarbe         350 dt FM/ha Blühhorizont",null,null,null,null,null,0.46,0.16,0.77,null,"zehrend",-280,-400,-520,"Gruppe 4"]
[246,"Sonst","Schöllkraut         300 dt FM/ha Blühendes Kraut",null,null,null,null,null,0.4,0.11,0.5,null,"zehrend",-560,-800,-1040,"Gruppe 3"]
[247,"Sonst","Sonnenhut (roter) 150 dt FM/ha Wurzeln",null,null,null,null,null,0.46,0.14000000000000001,0.5,null,"zehrend",-560,-800,-1040,"Gruppe 3"]
[248,"Sonst","Sonnenhut (roter) 300 dt FM/ha Blühendes Kraut",null,null,null,null,null,0.44,0.13,0.83,null,"zehrend",-560,-800,-1040,"Gruppe 3"]
[249,"Sonst","SonnenhutEch.ang.20dt FM/ha Wurzeln",null,null,null,null,null,0.95,0.2,0.45,null,"zehrend",-560,-800,-1040,"Gruppe 3"]
[250,"Sonst","SonnenhutEch.ang.50dt FM/ha Blühendes Kraut",null,null,null,null,null,0.56000000000000005,0.12,0.82,null,"zehrend",-560,-800,-1040,"Gruppe 3"]
[251,"Sonst","SonnenhutEch.pal.150dt FM/ha Wurzeln",null,null,null,null,null,0.57999999999999996,0.14000000000000001,0.49,null,"zehrend",-560,-800,-1040,"Gruppe 3"]
[252,"Sonst","SonnenhutEch.pal.300dt FM/ha Blühendes Kraut",null,null,null,null,null,0.31,0.1,0.45,null,"zehrend",-560,-800,-1040,"Gruppe 3"]
[253,"Sonst","Spitzwegerich     200 dt FM/ha Kraut",null,null,null,null,null,0.33,0.11,0.53,null,"zehrend",-280,-400,-520,"Gruppe 4"]
[254,"Sonst","Steinklee (blauer)400 dt FM/ha Blühendes Kraut",null,null,null,null,null,0.37,0.11,0.91]
[255,"Sonst","Steinklee (gelber)350 dt FM/ha Blühendes Kraut",null,null,null,null,null,0.57999999999999996,0.14000000000000001,0.41]
[256,"Sonst","Thymian             150 dt FM/ha Blühendes Kraut",null,null,null,null,null,0.44,0.12,0.77,null,"zehrend",-280,-400,-520,"Gruppe 4"]
[257,"Sonst","Zitronenmelisse  300 dt FM/ha Nicht blüh.Kraut",null,null,null,null,null,0.49,0.14000000000000001,0.76,null,"zehrend",-280,-400,-520,"Gruppe 4"]

{"sheet":"mehrer","index":5,"n_rows":26,"n_cols":20,"rows_kept":26,"cut":false,"hidden":true,"merged":[]}
[null,null,null,null,null,null,"Korn/Stroh Verh.","Grobfutter","Frischmasse","Frischmasse","Frischmasse","unvermeidbare N-Verluste","Humusmehrend/Zehrend","niedirige Werte","mittlere Werte","obere Werte","Humuszehrer Grupper","niedirige Werte","obere Werte","Humusmehrer"]
[1,"Kölegu","Ackerbohnen Korn","Frischmasse","86","Korn","1",null,4.0999999999999996,1.2,1.4,null,"mehrend",null,null,null,null,160,160,"Gruppe 6"]
[2,"Kölegu","Bl. Lupinen Korn","Frischmasse","86","Korn","1",null,4.4800000000000004,1.39,1.66,null,"mehrend",null,null,null,null,160,160,"Gruppe 6"]
[3,"Kölegu","Körnererbsen Korn","Frischmasse","86","Korn","1",null,3.6,1.1000000000000001,1.4,null,"mehrend",null,null,null,null,160,160,"Gruppe 6"]
[4,"Kölegu","Sojabohnen Korn","Frischmasse","86","Korn","1",null,5.8,1.62,1.94,null,"mehrend",null,null,null,null,160,160,"Gruppe 6"]
[5,"Fulegu","Klee-/Luzernesamen Korn","Frischmasse","91","Korn","1",null,5.5,1.46,1.25,null,"mehrend",null,null,null,null,600,800,"Gruppe 6"]
[6]
[7,"Fulegu","Kleegras (50:50) Ganzpflanze","Frischmasse","20","Grobfutter","1",1.25,0.52,0.14000000000000001,0.62,null,"mehrend",null,null,null,null,600,800,"Gruppe 6"]
[8,"Fulegu","Kleegras (70:30) Ganzpflanze","Frischmasse","20","Grobfutter","1",1.25,0.53,0.14000000000000001,0.62,null,"mehrend",null,null,null,null,600,800,"Gruppe 6"]
[9,"Fulegu","Luzerne  Ganzpflanze","Frischmasse","20","Grobfutter","1",1.25,0.6,0.14000000000000001,0.65,null,"mehrend",null,null,null,null,600,800,"Gruppe 6"]
[10,"Fulegu","Luzernegras (50:50) Ganzpflanze","Frischmasse","20","Grobfutter","1",1.25,0.54,0.15,0.65,null,"mehrend",null,null,null,null,600,800,"Gruppe 6"]
[11,"Fulegu","Luzernegras (70:30) Ganzpflanze","Frischmasse","20","Grobfutter","1",1.25,0.55000000000000004,0.15,0.65,null,"mehrend",null,null,null,null,600,800,"Gruppe 6"]
[12,"Fulegu","Rotklee  Ganzpflanze","Frischmasse","20","Grobfutter","1",1.25,0.55000000000000004,0.13,0.6,null,"mehrend",null,null,null,null,600,800,"Gruppe 6"]
[13,null,"Winterzwischenfrucht",null,null,null,null,null,null,null,null,null,"mehrend",null,null,null,null,140,140,"Zwischenfrucht"]
[14,null,"Stoppelzwischenfrucht",null,null,null,null,null,null,null,null,null,"mehrend",null,null,null,null,100,100,"Zwischenfrucht"]
[15,null,"Ackergras- Leguminosen, Leguminosengemenge als Untersaat",null,null,null,null,null,null,null,null,null,null,null,null,null,null,200,300,"Zwischenfrucht"]
[16,null,"Ackergras- Leguminosen, Leguminosengemenge als Sommerblanksaat",null,null,null,null,null,null,null,null,null,null,null,null,null,null,100,150,"Zwischenfrucht"]
[17,null,"Ackergras- Leguminosen, Leguminosengemenge als Gründeckfrucht",null,null,null,null,null,null,null,null,null,null,null,null,null,null,300,400,"Zwischenfrucht"]
[18,null,"Ackergras- Leguminosen, Leguminosengemenge als Frühjahrsblanksaat","Frischmasse",null,null,null,null,null,null,null,null,null,null,null,null,null,400,500,"Zwischenfrucht"]
[19,"Zwfr","Ackergras ",null,null,"Ganzpflanze","1",null,null,null,null,null,"mehrend",null,null,null,null,600,800,"Gruppe 6"]
[20,"Sonst","Grünerbse Hülse 100 dt FM/ha Hülse","Frischmasse",null,"Gemüse","1",null,0.16,0.17,0.4,-60,"mehrend",null,null,null,null,16,16,"Gruppe 5"]
[21,"Ackfu","Weidelgras Ganzpflanze","Frischmasse","20","Grobfutter",null,1.25,0.48,0.16,0.65,null,"mehrend",null,null,null,null,600,800]
[22,"Ackfu","Futterzwischenfrüchte Ganzpflanze","Frischmasse","15","Grobfutter",null,1.1499999999999999,0.35,0.11,0.45,null,"mehrend",null,null,null,null,600,800,"Zwischenfrucht"]
[23,"Fulegu","Leguminosenzwischenfrüchte ","Frischmasse","15","GP ",null,null,2.9,0.9,3.5,null,"mehrend",null,null,null,null,140,140,"Zwischenfrucht"]
[24,"Verm","Grassamen Korn","Frischmasse","86","Korn",null,null,2.2000000000000002,0.7,0.6,null,"mehrend",null,null,null,null,600,800]
[25,"Zwfr","Untersaatten",null,null,null,null,null,null,null,null,null,"mehrend",null,null,null,null,250,250,"Zwischenfrucht"]

{"sheet":"Liste","index":6,"n_rows":36,"n_cols":3,"rows_kept":36,"cut":false,"hidden":true,"merged":[]}
[]
[]
[null,"Getre","Getreide"]
[null,"Kölegu","Körnerleguminosen"]
[null,"Ölfrü","Ölfrüchte"]
[null,"Ackfu","Ackerfutter"]
[null,"Hackfr","Hackfrüchte"]
[null,"Faserpfl","Faserpflanzen"]
[null,"Ganzpfl","Ganzpflanzen"]
[null,"Fulegu","Futterleguminosen"]
[null,"Grünl","Grünland"]
[null,"Verm","Vermehrung"]
[null,"Zwfr","Zwischenfrucht"]
[null,"Sonst","Sonstiges"]
[]
[]
[null,"integriert"]
[null,"ökologisch"]
[]
[null,"erhalten"]
[null,"fördern"]
[null,"stark fördern"]
[]
[null,"Humus"]
[null,"mehrend"]
[null,"zehrend"]
[]
[]
[null,"Ertragsniveau"]
[null,"niedrig"]
[null,"hoch"]
[]
[]
[null,"Betrachtungseinheit"]
[null,"Fruchtfolge"]
[null,"Gesamtbetrieb"]